[Event "Azerbaijan Championship 2022"]
[Site "Nakhchivan"]
[Date "2022.02.06"]
[Round "2.7"]
[White "Shahaliyev, Ismayil"]
[Black "Manafov, Vugar"]
[Result "1-0"]
[ECO "A40"]
[WhiteElo "2380"]
[BlackElo "2299"]
[Annotator "ChessBase"]
[PlyCount "93"]
[EventDate "2022.02.05"]
[EventCountry "AZE"]
[SourceTitle "playchess.com"]
[Source "ChessBase"]
[SourceQuality "1"]
[TimeControl "40/5400+30:1800+30"]

1. d4 {[%emt 0:00:28]} Nf6 {[%emt 0:00:06]} 2. c4 {[%emt 0:00:10]} e6 {[%emt 0:00:10]} 3. g3 {[%emt 0:00:06]} Bb4+ {[%emt 0:00:34]} 4. Bd2 {[%emt 0:00:33]} a5 {[%emt 0:00:49]} 5. Bg2 {[%emt 0:00:07]} d5 {[%emt 0:00:42]} 6. Nf3 {[%emt 0:00:09]} O-O {[%emt 0:01:54]} 7. O-O {[%emt 0:00:21]} Nbd7 {[%emt 0:00:27]} 8. Qc2 {[%emt 0:00:19]} c6 {[%emt 0:00:21]} 9. Bf4 {[%emt 0:00:08]} Be7 {[%emt 0:00:10]} 10. Rd1 {[%emt 0:00:13]} Nh5 {[%emt 0:04:36]} 11. Bc1 {[%emt 0:05:28]} f5 {[%emt 0:01:50]} 12. b3 {[%emt 0:01:15]} Nhf6 {[%emt 0:06:01]} 13. Ba3 {[%emt 0:00:10]} a4 {[%emt 0:05:04]} 14. Bxe7 {[%emt 0:02:23]} Qxe7 {[%emt 0:00:07]} 15. Nc3 {[%emt 0:00:20]} a3 {[%emt 0:06:05]} 16. e3 {[%emt 0:10:58]} Ne4 {[%emt 0:06:23]} 17. Rab1 {[%emt 0:15:14]} b5 {[%emt 0:15:28]} 18. cxb5 {[%emt 0:34:53]} cxb5 {[%emt 0:01:27]} 19. Rbc1 {[%emt 0:00:04]} Ba6 {[%emt 0:07:48]} 20. Nxe4 {[%emt 0:00:11]} fxe4 {[%emt 0:00:41]} 21. Ne1 {[%emt 0:03:39]} b4 {[%emt 0:10:06]} 22. Qd2 {[%emt 0:00:41]} Rac8 {[%emt 0:05:50]} 23. Bh3 {[%emt 0:03:51]} Qd6 {[%emt 0:09:06]} 24. Rxc8 {[%emt 0:02:07]} Rxc8 {[%emt 0:00:06]} 25. Rc1 {[%emt 0:00:05]} Rf8 {[%emt 0:11:22]} 26. Rc2 {[%emt 0:07:10]} h5 {[%emt 0:03:16]} 27. Qd1 {[%emt 0:03:48]} Nf6 {[%emt 0:00:06]} 28. Qc1 {[%emt 0:00:14]} Bb5 {[%emt 0:03:23]} 29. Rc8 {[%emt 0:00:11]} Rxc8 {[%emt 0:00:29]} 30. Qxc8+ {[%emt 0:00:03]} Kf7 {[%emt 0:00:00]} 31. Nc2 {[%emt 0:05:02]} Nd7 {[%emt 0:01:01]} 32. Qb7 {[%emt 0:01:33]} Bd3 {[%emt 0:00:25]} 33. Nxb4 {[%emt 0:00:42]} Bb1 {[%emt 0:00:04]} 34. Na6 {[%emt 0:02:34]} Kg6 {[%emt 0:01:01]} 35. Nb4 {[%emt 0:01:17]} Kh7 {[%emt 0:00:30]} 36. Qb5 {[%emt 0:00:41]} h4 {[%emt 0:00:30]} 37. Qa5 {[%emt 0:00:57]} e5 {[%emt 0:00:31]} 38. Bf5+ {[%emt 0:00:31]} g6 {[%emt 0:00:23]} 39. Bxd7 {[%emt 0:00:23]} Qxd7 {[%emt 0:00:17]} 40. Nxd5 {[%emt 0:00:00]} Qc6 {[%emt 0:00:00]} 41. Nc3 {[%emt 0:13:30]} exd4 {[%emt 0:01:16]} 42. Qa7+ {[%emt 0:01:48]} Kg8 {[%emt 0:01:14]} 43. Qxd4 {[%emt 0:00:07]} h3 {[%emt 0:00:26]} 44. Kf1 {[%emt 0:05:47]} Kh7 {[%emt 0:05:26]} 45. Ke1 {[%emt 0:00:33]} Bxa2 {[%emt 0:02:56]} 46. Nxa2 {[%emt 0:00:27]} Qc2 {[%emt 0:00:03]} 47. Qa7+ {[%emt 0:00:24]} 1-0

[Event "Azerbaijan Championship 2022"]
[Site "Nakhchivan"]
[Date "2022.02.06"]
[Round "2.10"]
[White "Mustafayev, Farid"]
[Black "Bayramov, Elvin"]
[Result "0-1"]
[ECO "D43"]
[WhiteElo "2322"]
[BlackElo "2280"]
[Annotator "ChessBase"]
[PlyCount "100"]
[EventDate "2022.02.05"]
[EventCountry "AZE"]
[SourceTitle "playchess.com"]
[Source "ChessBase"]
[SourceQuality "1"]
[TimeControl "40/5400+30:1800+30"]

1. d4 {[%emt 0:00:01]} d5 {[%emt 0:00:08]} 2. c4 {[%emt 0:00:05]} c6 {[%emt 0:00:05]} 3. Nf3 {[%emt 0:00:10]} Nf6 {[%emt 0:00:06]} 4. Nc3 {[%emt 0:00:23]} e6 {[%emt 0:00:14]} 5. cxd5 {[%emt 0:00:59]} exd5 {[%emt 0:01:31]} 6. Bg5 {[%emt 0:00:14]} Bd6 {[%emt 0:05:14]} 7. e3 {[%emt 0:00:14]} h6 {[%emt 0:00:35]} 8. Bh4 {[%emt 0:00:07]} Qb6 {[%emt 0:03:42]} 9. Qc1 {[%emt 0:00:29]} Bf5 {[%emt 0:01:28]} 10. Be2 {[%emt 0:00:46]} Ne4 {[%emt 0:00:57]} 11. O-O {[%emt 0:03:35]} g5 {[%emt 0:00:51]} 12. Bg3 {[%emt 0:00:28]} Nxg3 {[%emt 0:01:13]} 13. hxg3 {[%emt 0:00:16]} Nd7 {[%emt 0:01:51]} 14. Qd2 {[%emt 0:06:04]} Be4 {[%emt 0:12:30]} 15. Rac1 {[%emt 0:07:17]} Qd8 {[%emt 0:02:08]} 16. Ne5 {[%emt 0:13:26]} Nxe5 {[%emt 0:04:29]} 17. dxe5 {[%emt 0:00:30]} Bxe5 {[%emt 0:00:32]} 18. Nxe4 {[%emt 0:00:07]} dxe4 {[%emt 0:00:05]} 19. Qb4 {[%emt 0:00:03]} Qe7 {[%emt 0:02:39]} 20. Qxe4 {[%emt 0:00:15]} Bg7 {[%emt 0:06:05]} 21. Qc2 {[%emt 0:06:35]} h5 {[%emt 0:05:46]} 22. Qa4 {[%emt 0:07:15]} Kf8 {[%emt 0:06:27]} 23. Rcd1 {[%emt 0:09:46]} g4 {[%emt 0:14:22]} 24. Rd2 {[%emt 0:02:53]} b5 {[%emt 0:15:52]} 25. Qa6 {[%emt 0:03:23]} Rh6 {[%emt 0:00:10]} 26. Rfd1 {[%emt 0:02:45]} Be5 {[%emt 0:05:40]} 27. Rd7 {[%emt 0:03:10]} Qf6 {[%emt 0:01:11]} 28. Rxa7 {[%emt 0:03:34]} Rxa7 {[%emt 0:00:47]} 29. Qxa7 {[%emt 0:00:06]} Kg7 {[%emt 0:02:41]} 30. b3 {[%emt 0:04:40]} h4 {[%emt 0:01:04]} 31. Bxg4 {[%emt 0:00:48]} hxg3 {[%emt 0:01:09]} 32. f4 {[%emt 0:01:03]} Rh4 {[%emt 0:04:24]} 33. Qd7 {[%emt 0:01:38]} Bb8 {[%emt 0:00:28]} 34. Bh3 {[%emt 0:02:16]} Qb2 {[%emt 0:00:31]} 35. Rf1 {[%emt 0:03:42]} Qc3 {[%emt 0:00:22]} 36. Qe7 {[%emt 0:02:36]} Rh6 {[%emt 0:00:10]} 37. Bf5 {[%emt 0:01:24]} Rf6 {[%emt 0:00:55]} 38. Bb1 {[%emt 0:04:20]} Bd6 {[%emt 0:00:07]} 39. Qe4 {[%emt 0:00:14]} Bc5 {[%emt 0:00:20]} 40. Qh7+ {[%emt 0:00:00]} Kf8 {[%emt 0:00:00]} 41. Bf5 {[%emt 0:06:13]} Qxe3+ {[%emt 0:05:06]} 42. Kh1 {[%emt 0:00:12]} Qe2 {[%emt 0:00:46]} 43. Rb1 {[%emt 0:03:20]} Bf2 {[%emt 0:06:31]} 44. Qh8+ {[%emt 0:03:04]} Ke7 {[%emt 0:00:42]} 45. Qh4 {[%emt 0:00:01]} Be1 {[%emt 0:08:19]} 46. Bd3 {[%emt 0:00:12]} Qe3 {[%emt 0:00:18]} 47. Rd1 {[%emt 0:02:13]} Bc3 {[%emt 0:02:10]} 48. a4 {[%emt 0:03:46]} Qxf4 {[%emt 0:01:17]} 49. Qxf4 {[%emt 0:01:11]} Rxf4 {[%emt 0:00:01]} 50. axb5 {[%emt 0:00:07]} cxb5 {[%emt 0:01:13]} 0-1

[Event "Azerbaijan Championship 2022"]
[Site "Nakhchivan"]
[Date "2022.02.06"]
[Round "2.11"]
[White "Babayev, Talib"]
[Black "Ilyasli, Ughur"]
[Result "0-1"]
[ECO "E73"]
[WhiteElo "2256"]
[BlackElo "2310"]
[Annotator "ChessBase"]
[PlyCount "44"]
[EventDate "2022.02.05"]
[EventCountry "AZE"]
[SourceTitle "playchess.com"]
[Source "ChessBase"]
[SourceQuality "1"]
[TimeControl "40/5400+30:1800+30"]

1. d4 {[%emt 0:00:03]} Nf6 {[%emt 0:00:14]} 2. c4 {[%emt 0:00:08]} g6 {[%emt 0:00:16]} 3. Nc3 {[%emt 0:00:09]} Bg7 {[%emt 0:00:15]} 4. e4 {[%emt 0:00:09]} d6 {[%emt 0:00:15]} 5. Be2 {[%emt 0:00:10]} O-O {[%emt 0:00:17]} 6. g4 {[%emt 0:00:10]} c5 {[%emt 0:00:14]} 7. g5 {[%emt 0:00:09]} Ne8 {[%emt 0:00:29]} 8. d5 {[%emt 0:00:08]} e6 {[%emt 0:00:17]} 9. h4 {[%emt 0:00:36]} exd5 {[%emt 0:00:06]} 10. cxd5 {[%emt 0:00:06]} Qe7 {[%emt 0:00:06]} 11. f3 {[%emt 0:00:20]} f5 {[%emt 0:12:31]} 12. gxf6 {[%emt 0:00:55]} Nxf6 {[%emt 0:03:32]} 13. Nh3 {[%emt 0:07:11]} Nh5 {[%emt 0:09:10]} 14. Bg5 {[%emt 0:13:53]} Qf7 {[%emt 0:02:18]} 15. Be3 {[%emt 0:16:20]} h6 {[%emt 0:20:37]} 16. Qd2 {[%emt 0:14:59]} Ng3 {[%emt 0:06:36]} 17. Rh2 {[%emt 0:00:06]} Bxc3 {[%emt 0:10:13]} 18. bxc3 {[%emt 0:04:35]} Nxe2 {[%emt 0:00:10]} 19. Qxe2 {[%emt 0:00:09]} Qxf3 {[%emt 0:01:10]} 20. Nf2 {[%emt 0:00:19]} Qg3 {[%emt 0:02:12]} 21. Rh1 {[%emt 0:00:21]} Bg4 {[%emt 0:02:49]} 22. Qd2 {[%emt 0:10:16]} Nd7 {[%emt 0:00:34]} 0-1

[Event "Azerbaijan Championship 2022"]
[Site "Nakhchivan"]
[Date "2022.02.06"]
[Round "2.12"]
[White "Talibov, Shiroghlan"]
[Black "Mammadov, Sadig"]
[Result "0-1"]
[ECO "C15"]
[WhiteElo "2307"]
[BlackElo "2220"]
[Annotator "ChessBase"]
[PlyCount "96"]
[EventDate "2022.02.05"]
[EventCountry "AZE"]
[SourceTitle "playchess.com"]
[Source "ChessBase"]
[SourceQuality "1"]
[TimeControl "40/5400+30:1800+30"]

1. e4 {[%emt 0:01:40]} e6 {[%emt 0:00:10]} 2. d4 {[%emt 0:00:04]} d5 {[%emt 0:00:04]} 3. Nc3 {[%emt 0:00:03]} Bb4 {[%emt 0:00:06]} 4. Bd2 {[%emt 0:00:31]} Bxc3 {[%emt 0:00:18]} 5. bxc3 {[%emt 0:00:14]} Ne7 {[%emt 0:03:54]} 6. Bd3 {[%emt 0:01:49]} c5 {[%emt 0:00:49]} 7. e5 {[%emt 0:05:31]} c4 {[%emt 0:01:23]} 8. Be2 {[%emt 0:00:12]} Qa5 {[%emt 0:00:26]} 9. a4 {[%emt 0:03:04]} Bd7 {[%emt 0:01:27]} 10. Qb1 {[%emt 0:00:08]} b6 {[%emt 0:01:01]} 11. Qb4 {[%emt 0:02:11]} Nbc6 {[%emt 0:03:56]} 12. Qa3 {[%emt 0:01:38]} Rb8 {[%emt 0:03:12]} 13. Nf3 {[%emt 0:11:45]} b5 {[%emt 0:01:51]} 14. O-O {[%emt 0:01:16]} bxa4 {[%emt 0:01:15]} 15. Bg5 {[%emt 0:08:32]} h6 {[%emt 0:08:55]} 16. Bxe7 {[%emt 0:00:48]} Nxe7 {[%emt 0:00:11]} 17. Rfb1 {[%emt 0:00:02]} Rb6 {[%emt 0:01:33]} 18. Nd2 {[%emt 0:02:27]} Nc8 {[%emt 0:04:01]} 19. f4 {[%emt 0:03:17]} Kd8 {[%emt 0:07:57]} 20. h4 {[%emt 0:10:44]} Rxb1+ {[%emt 0:10:26]} 21. Rxb1 {[%emt 0:00:19]} Qc7 {[%emt 0:00:01]} 22. Nf1 {[%emt 0:05:39]} Be8 {[%emt 0:01:04]} 23. f5 {[%emt 0:14:30]} Qe7 {[%emt 0:01:32]} 24. Qc1 {[%emt 0:00:28]} Nb6 {[%emt 0:11:31]} 25. Qf4 {[%emt 0:02:13]} g5 {[%emt 0:02:10]} 26. Qf2 {[%emt 0:06:12]} gxh4 {[%emt 0:02:29]} 27. Ne3 {[%emt 0:03:26]} h5 {[%emt 0:00:21]} 28. f6 {[%emt 0:01:33]} Qa3 {[%emt 0:00:44]} 29. Qe1 {[%emt 0:00:03]} h3 {[%emt 0:06:05]} 30. Ra1 {[%emt 0:00:24]} Qf8 {[%emt 0:00:53]} 31. gxh3 {[%emt 0:00:46]} Qh6 {[%emt 0:00:33]} 32. Qg3 {[%emt 0:02:32]} Rg8 {[%emt 0:03:29]} 33. Qxg8 {[%emt 0:00:19]} Qxe3+ {[%emt 0:00:01]} 34. Kf1 {[%emt 0:00:45]} Qxh3+ {[%emt 0:00:12]} 35. Kf2 {[%emt 0:01:17]} Qxc3 {[%emt 0:00:28]} 36. Rd1 {[%emt 0:00:10]} a3 {[%emt 0:04:03]} 37. Qf8 {[%emt 0:06:01]} Nc8 {[%emt 0:00:06]} 38. Qh6 {[%emt 0:01:51]} a2 {[%emt 0:01:25]} 39. Qc1 {[%emt 0:00:03]} h4 {[%emt 0:00:35]} 40. Bf3 {[%emt 0:00:00]} Ba4 {[%emt 0:00:00]} 41. Qa1 {[%emt 0:04:48]} Qxc2+ {[%emt 0:01:07]} 42. Ke3 {[%emt 0:00:27]} c3 {[%emt 0:02:40]} 43. Qc1 {[%emt 0:00:28]} Qb2 {[%emt 0:01:53]} 44. Rg1 {[%emt 0:00:39]} Nb6 {[%emt 0:03:03]} 45. Be2 {[%emt 0:00:05]} Bc2 {[%emt 0:01:08]} 46. Bd3 {[%emt 0:00:38]} Bb1 {[%emt 0:00:49]} 47. Qxb2 {[%emt 0:00:16]} cxb2 {[%emt 0:00:07]} 48. Rxb1 {[%emt 0:00:01]} a1=Q {[%emt 0:00:12]} 0-1

[Event "Azerbaijan Championship 2022"]
[Site "Nakhchivan"]
[Date "2022.02.07"]
[Round "3.6"]
[White "Atakishiyev, Elmar"]
[Black "Babazada, Khazar"]
[Result "0-1"]
[ECO "A40"]
[WhiteElo "2240"]
[BlackElo "2427"]
[Annotator "ChessBase"]
[PlyCount "80"]
[EventDate "2022.02.05"]
[EventCountry "AZE"]
[SourceTitle "playchess.com"]
[Source "ChessBase"]
[SourceQuality "1"]
[TimeControl "40/5400+30:1800+30"]

1. d4 {[%emt 0:00:09]} Nf6 {[%emt 0:01:41]} 2. c4 {[%emt 0:00:50]} e6 {[%emt 0:00:26]} 3. g3 {[%emt 0:02:33]} d5 {[%emt 0:00:13]} 4. Nf3 {[%emt 0:00:11]} Bb4+ {[%emt 0:00:11]} 5. Bd2 {[%emt 0:00:30]} a5 {[%emt 0:00:06]} 6. Bg2 {[%emt 0:00:27]} O-O {[%emt 0:00:09]} 7. O-O {[%emt 0:00:53]} dxc4 {[%emt 0:00:13]} 8. Bg5 {[%emt 0:01:18]} h6 {[%emt 0:00:09]} 9. Bxf6 {[%emt 0:00:21]} Qxf6 {[%emt 0:00:03]} 10. Qc2 {[%emt 0:03:41]} Nd7 {[%emt 0:00:14]} 11. Qxc4 {[%emt 0:03:17]} e5 {[%emt 0:00:07]} 12. a3 {[%emt 0:09:16]} Bd6 {[%emt 0:00:33]} 13. Nc3 {[%emt 0:02:26]} Qe7 {[%emt 0:02:14]} 14. e4 {[%emt 0:23:05]} c6 15. Rad1 {[%emt 0:04:07]} exd4 {[%emt 0:04:53]} 16. Nxd4 {[%emt 0:01:59]} Ne5 {[%emt 0:00:56]} 17. Qe2 {[%emt 0:00:32]} Bc5 {[%emt 0:00:21]} 18. Nf5 {[%emt 0:05:34]} Qf6 {[%emt 0:01:12]} 19. Ne3 {[%emt 0:06:41]} Be6 {[%emt 0:01:07]} 20. Kh1 {[%emt 0:03:26]} Bxe3 {[%emt 0:03:31]} 21. Qxe3 {[%emt 0:02:52]} Bc4 {[%emt 0:01:47]} 22. f4 {[%emt 0:11:08]} Bxf1 {[%emt 0:00:21]} 23. Rxf1 {[%emt 0:00:06]} Nc4 {[%emt 0:01:11]} 24. Qe2 {[%emt 0:00:07]} Qd4 {[%emt 0:00:42]} 25. Rd1 {[%emt 0:00:43]} Qc5 {[%emt 0:00:07]} 26. Rc1 {[%emt 0:03:31]} Qe3 {[%emt 0:01:01]} 27. Qxe3 {[%emt 0:00:37]} Nxe3 {[%emt 0:00:10]} 28. Bf3 {[%emt 0:00:18]} Rad8 {[%emt 0:00:25]} 29. e5 {[%emt 0:00:40]} Rd2 {[%emt 0:05:20]} 30. Ne4 {[%emt 0:00:31]} Rxb2 {[%emt 0:00:05]} 31. Nd6 {[%emt 0:00:11]} Rd8 {[%emt 0:08:34]} 32. h4 {[%emt 0:03:01]} g6 {[%emt 0:01:38]} 33. Be4 {[%emt 0:00:55]} Kf8 {[%emt 0:01:04]} 34. Re1 {[%emt 0:00:30]} Ng4 {[%emt 0:00:30]} 35. Kg1 {[%emt 0:00:09]} Ke7 {[%emt 0:02:07]} 36. Rc1 {[%emt 0:02:21]} Rb3 {[%emt 0:01:38]} 37. Kg2 {[%emt 0:00:24]} Rxd6 {[%emt 0:00:27]} 38. exd6+ {[%emt 0:00:05]} Kxd6 {[%emt 0:00:04]} 39. Rd1+ {[%emt 0:00:40]} Ke7 {[%emt 0:00:09]} 40. Re1 {[%emt 0:00:00]} Re3 {[%emt 0:00:00]} 0-1

[Event "Azerbaijan Championship 2022"]
[Site "Nakhchivan"]
[Date "2022.02.08"]
[Round "4.11"]
[White "Mammadov, Sadig"]
[Black "Eynullayev, Atilla"]
[Result "0-1"]
[ECO "D72"]
[WhiteElo "2220"]
[BlackElo "2324"]
[Annotator "ChessBase"]
[PlyCount "120"]
[EventDate "2022.02.05"]
[EventCountry "AZE"]
[SourceTitle "playchess.com"]
[Source "ChessBase"]
[SourceQuality "1"]
[TimeControl "40/5400+30:1800+30"]

1. d4 {[%emt 0:00:49]} Nf6 {[%emt 0:00:23]} 2. c4 {[%emt 0:00:30]} g6 {[%emt 0:00:00]} 3. g3 {[%emt 0:00:06]} Bg7 {[%emt 0:00:17]} 4. Bg2 d5 {[%emt 0:00:00]} 5. cxd5 {[%emt 0:00:11]} Nxd5 {[%emt 0:00:00]} 6. e4 {[%emt 0:00:27]} Nb6 7. Ne2 {[%emt 0:00:09]} c5 {[%emt 0:00:17]} 8. d5 {[%emt 0:00:05]} O-O {[%emt 0:00:05]} 9. O-O {[%emt 0:00:09]} e6 {[%emt 0:00:07]} 10. Nec3 {[%emt 0:00:12]} Na6 {[%emt 0:00:05]} 11. a3 {[%emt 0:04:58]} exd5 {[%emt 0:03:52]} 12. exd5 {[%emt 0:00:02]} Nc4 {[%emt 0:01:23]} 13. Bf4 Re8 {[%emt 0:09:06]} 14. b3 {[%emt 0:18:29]} Nd6 {[%emt 0:03:02]} 15. g4 {[%emt 0:06:58]} b5 {[%emt 0:07:28]} 16. Ra2 {[%emt 0:11:04]} b4 {[%emt 0:06:31]} 17. axb4 {[%emt 0:00:40]} Nxb4 {[%emt 0:00:14]} 18. Ra4 {[%emt 0:03:55]} a5 {[%emt 0:12:34]} 19. Qf3 {[%emt 0:20:22]} Bd7 {[%emt 0:10:18]} 20. Ra1 {[%emt 0:04:53]} Nb5 {[%emt 0:03:31]} 21. Qg3 {[%emt 0:06:15]} Qf6 {[%emt 0:04:41]} 22. Bd2 {[%emt 0:07:59]} Nd4 {[%emt 0:02:56]} 23. Ra3 {[%emt 0:02:16]} Bb5 {[%emt 0:03:40]} 24. Rc1 {[%emt 0:03:48]} Bd7 {[%emt 0:03:21]} 25. h3 {[%emt 0:02:21]} Ndc2 {[%emt 0:01:21]} 26. Qc7 {[%emt 0:01:20]} Nxa3 {[%emt 0:01:06]} 27. Nxa3 {[%emt 0:00:17]} Nd3 {[%emt 0:01:00]} 28. Rf1 {[%emt 0:00:05]} Qd8 {[%emt 0:01:06]} 29. Qg3 {[%emt 0:01:32]} Nb4 {[%emt 0:00:44]} 30. Nc4 {[%emt 0:00:57]} Nc2 {[%emt 0:01:45]} 31. Ne4 {[%emt 0:01:30]} Nd4 {[%emt 0:01:31]} 32. Kh1 {[%emt 0:01:13]} a4 {[%emt 0:01:36]} 33. bxa4 {[%emt 0:01:11]} Rxa4 {[%emt 0:00:58]} 34. Ncd6 {[%emt 0:00:19]} Be5 {[%emt 0:01:16]} 35. Qd3 {[%emt 0:00:51]} c4 {[%emt 0:01:12]} 36. Qb1 {[%emt 0:01:10]} Rf8 {[%emt 0:03:46]} 37. Nb7 {[%emt 0:00:43]} Qb8 {[%emt 0:03:12]} 38. Nec5 {[%emt 0:00:17]} Bb5 {[%emt 0:03:10]} 39. Bc3 {[%emt 0:00:32]} Nb3 {[%emt 0:02:21]} 40. Nxa4 {[%emt 0:00:00]} Bxa4 {[%emt 0:00:00]} 41. Bxe5 {[%emt 0:02:05]} Qxe5 {[%emt 0:01:20]} 42. Re1 {[%emt 0:08:26]} Qd4 {[%emt 0:02:34]} 43. Qa2 {[%emt 0:09:35]} c3 {[%emt 0:01:35]} 44. d6 {[%emt 0:03:10]} Qd2 {[%emt 0:19:23]} 45. Qxd2 {[%emt 0:00:20]} cxd2 {[%emt 0:00:05]} 46. Rd1 {[%emt 0:00:05]} Re8 {[%emt 0:00:17]} 47. Bf3 {[%emt 0:01:09]} Re1+ {[%emt 0:01:14]} 48. Kg2 {[%emt 0:01:15]} Kf8 {[%emt 0:02:01]} 49. Kg3 {[%emt 0:07:25]} g5 {[%emt 0:00:26]} 50. h4 {[%emt 0:00:33]} h6 {[%emt 0:00:05]} 51. hxg5 {[%emt 0:00:04]} hxg5 {[%emt 0:00:04]} 52. Na5 {[%emt 0:01:26]} Rxd1 {[%emt 0:07:36]} 53. Bxd1 {[%emt 0:00:01]} Nc5 {[%emt 0:01:17]} 54. d7 {[%emt 0:01:55]} Ke7 {[%emt 0:00:09]} 55. Nb7 {[%emt 0:00:17]} Nxb7 {[%emt 0:00:05]} 56. Bxa4 {[%emt 0:00:02]} Nc5 {[%emt 0:00:04]} 57. Bc2 {[%emt 0:00:55]} Ne4+ {[%emt 0:00:03]} 58. Bxe4 {[%emt 0:00:43]} d1=Q {[%emt 0:00:08]} 59. Bf5 {[%emt 0:00:03]} Kf6 {[%emt 0:00:17]} 60. f4 {[%emt 0:00:56]} Qd6 {[%emt 0:00:08]} 0-1

[Event "Azerbaijan Championship 2022"]
[Site "Nakhchivan"]
[Date "2022.02.09"]
[Round "5.10"]
[White "Atakishiyev, Elmar"]
[Black "Mammadov, Sadig"]
[Result "0-1"]
[ECO "D45"]
[WhiteElo "2240"]
[BlackElo "2220"]
[Annotator "ChessBase"]
[PlyCount "90"]
[EventDate "2022.02.05"]
[EventCountry "AZE"]
[SourceTitle "playchess.com"]
[Source "ChessBase"]
[SourceQuality "1"]
[TimeControl "40/5400+30:1800+30"]

1. d4 d5 2. c4 c6 3. Nf3 Nf6 4. Nc3 e6 5. e3 Nbd7 6. Qc2 Be7 7. b3 O-O 8. Bb2 b6 9. Bd3 Bb7 10. O-O Bd6 11. Rad1 h6 12. e4 {[%emt 0:32:46]} dxe4 {[%emt 0:16:46]} 13. Nxe4 {[%emt 0:00:05]} Nxe4 {[%emt 0:01:32]} 14. Bxe4 {[%emt 0:04:03]} Qc7 15. Qc3 f5 {[%emt 0:21:12]} 16. Bb1 {[%emt 0:03:13]} Rf7 {[%emt 0:10:16]} 17. Rfe1 {[%emt 0:03:07]} Re8 {[%emt 0:03:39]} 18. h3 {[%emt 0:19:47]} c5 {[%emt 0:06:41]} 19. dxc5 {[%emt 0:05:51]} Nxc5 {[%emt 0:00:44]} 20. Nd4 {[%emt 0:05:15]} Be5 {[%emt 0:02:51]} 21. Qe3 {[%emt 0:04:57]} Bh2+ {[%emt 0:03:51]} 22. Kf1 {[%emt 0:03:43]} Ne4 {[%emt 0:16:47]} 23. Nb5 Qe7 24. Bxe4 {[%emt 0:09:19]} fxe4 {[%emt 0:00:50]} 25. Ba3 {[%emt 0:00:33]} Qh4 {[%emt 0:00:45]} 26. Nd6 {[%emt 0:02:38]} Rf3 27. Nxe8 {[%emt 0:08:01]} Rxe3 {[%emt 0:03:15]} 28. Rxe3 {[%emt 0:00:00]} Bc6 29. Nd6 Bf4 {[%emt 0:04:24]} 30. Re2 {[%emt 0:00:41]} Be5 {[%emt 0:02:36]} 31. Re3 {[%emt 0:01:14]} Qh5 {[%emt 0:03:09]} 32. g4 {[%emt 0:00:21]} Qh4 {[%emt 0:02:10]} 33. Nc8 {[%emt 0:00:48]} Kh7 {[%emt 0:00:45]} 34. Ne7 {[%emt 0:00:08]} Bf4 {[%emt 0:01:11]} 35. Rd8 {[%emt 0:00:19]} Qf6 {[%emt 0:00:47]} 36. Re2 {[%emt 0:00:19]} Bb7 {[%emt 0:02:25]} 37. Rd7 {[%emt 0:00:41]} Qc3 38. Rb2 {[%emt 0:01:06]} Qxh3+ {[%emt 0:01:10]} 39. Ke1 {[%emt 0:00:01]} Qh1+ {[%emt 0:00:38]} 40. Ke2 {[%emt 0:00:00]} Qf3+ {[%emt 0:00:00]} 41. Ke1 {[%emt 0:00:22]} e3 {[%emt 0:03:17]} 42. fxe3 {[%emt 0:04:03]} Qxe3+ {[%emt 0:00:14]} 43. Kf1 {[%emt 0:00:24]} Qh3+ {[%emt 0:00:30]} 44. Ke1 {[%emt 0:00:42]} Qh1+ {[%emt 0:00:24]} 45. Ke2 {[%emt 0:00:13]} Bf3+ {[%emt 0:00:20]} 0-1

[Event "Azerbaijan Championship 2022"]
[Site "Nakhchivan"]
[Date "2022.02.10"]
[Round "6.7"]
[White "Ilyasli, Ughur"]
[Black "Eynullayev, Atilla"]
[Result "1-0"]
[ECO "E21"]
[WhiteElo "2310"]
[BlackElo "2324"]
[Annotator "ChessBase"]
[PlyCount "124"]
[EventDate "2022.02.05"]
[EventCountry "AZE"]
[SourceTitle "playchess.com"]
[Source "ChessBase"]
[SourceQuality "1"]
[TimeControl "40/5400+30:1800+30"]

1. d4 {[%emt 0:02:30]} Nf6 {[%emt 0:00:12]} 2. c4 {[%emt 0:00:12]} e6 {[%emt 0:00:03]} 3. Nc3 {[%emt 0:03:47]} Bb4 {[%emt 0:00:16]} 4. Nf3 {[%emt 0:00:07]} O-O {[%emt 0:01:40]} 5. Bg5 {[%emt 0:00:03]} c5 {[%emt 0:04:15]} 6. dxc5 {[%emt 0:01:46]} Na6 {[%emt 0:02:04]} 7. Qc2 {[%emt 0:24:45]} Nxc5 {[%emt 0:00:40]} 8. a3 {[%emt 0:01:52]} Bxc3+ {[%emt 0:01:49]} 9. Qxc3 {[%emt 0:00:06]} b6 {[%emt 0:11:46]} 10. Bxf6 {[%emt 0:06:37]} Qxf6 {[%emt 0:00:12]} 11. Qxf6 {[%emt 0:00:16]} gxf6 {[%emt 0:00:05]} 12. b4 {[%emt 0:03:00]} Na4 {[%emt 0:04:45]} 13. Nd4 {[%emt 0:09:24]} Ba6 {[%emt 0:05:06]} 14. e4 {[%emt 0:02:31]} Rfc8 {[%emt 0:09:29]} 15. Rc1 {[%emt 0:01:55]} Nb2 {[%emt 0:07:16]} 16. b5 {[%emt 0:04:06]} Bb7 {[%emt 0:00:10]} 17. Rc2 {[%emt 0:00:25]} Na4 {[%emt 0:00:23]} 18. f3 {[%emt 0:00:23]} a6 {[%emt 0:05:09]} 19. Be2 {[%emt 0:06:06]} axb5 {[%emt 0:08:52]} 20. Nxb5 {[%emt 0:01:44]} Ra5 {[%emt 0:06:00]} 21. Nd6 {[%emt 0:05:11]} Rb8 {[%emt 0:00:54]} 22. O-O {[%emt 0:06:01]} Kf8 {[%emt 0:01:50]} 23. f4 {[%emt 0:04:54]} Ke7 {[%emt 0:00:18]} 24. Nxb7 {[%emt 0:02:34]} Rxb7 {[%emt 0:00:02]} 25. Rf3 {[%emt 0:00:41]} Nc5 {[%emt 0:02:43]} 26. Re3 {[%emt 0:01:26]} Rba7 {[%emt 0:03:33]} 27. Rcc3 {[%emt 0:00:02]} Rc7 {[%emt 0:00:21]} 28. g4 {[%emt 0:01:04]} Nb7 {[%emt 0:03:59]} 29. Rb3 {[%emt 0:01:18]} Rc6 {[%emt 0:03:13]} 30. e5 {[%emt 0:01:03]} fxe5 {[%emt 0:01:09]} 31. fxe5 {[%emt 0:00:32]} Rcc5 {[%emt 0:05:35]} 32. Rxb6 {[%emt 0:00:49]} Rxe5 {[%emt 0:00:15]} 33. Rxe5 {[%emt 0:02:14]} Rxe5 {[%emt 0:00:02]} 34. Kf2 {[%emt 0:01:12]} Nd6 {[%emt 0:00:31]} 35. Rb4 {[%emt 0:00:11]} Ra5 {[%emt 0:03:51]} 36. a4 {[%emt 0:00:12]} Ne4+ {[%emt 0:00:34]} 37. Ke3 {[%emt 0:00:58]} Nc3 {[%emt 0:00:16]} 38. Bd3 {[%emt 0:01:24]} Nxa4 {[%emt 0:00:24]} 39. Bxh7 {[%emt 0:00:28]} Nc5 {[%emt 0:00:32]} 40. h4 {[%emt 0:00:00]} Ra3+ {[%emt 0:00:00]} 41. Kf4 {[%emt 0:13:06]} f5 {[%emt 0:23:19]} 42. Rb5 {[%emt 0:00:24]} Nd3+ {[%emt 0:00:34]} 43. Kg5 {[%emt 0:00:08]} fxg4 {[%emt 0:00:05]} 44. Kxg4 {[%emt 0:03:26]} Nf2+ {[%emt 0:01:28]} 45. Kf4 {[%emt 0:01:15]} Kf6 {[%emt 0:00:25]} 46. Rb6 {[%emt 0:06:54]} Rc3 {[%emt 0:03:07]} 47. c5 {[%emt 0:04:51]} Rxc5 {[%emt 0:07:14]} 48. Kf3 {[%emt 0:00:40]} Nh3 {[%emt 0:01:33]} 49. Rb3 {[%emt 0:01:11]} Rh5 {[%emt 0:01:24]} 50. Bc2 {[%emt 0:03:06]} Rxh4 {[%emt 0:00:07]} 51. Kg3 {[%emt 0:00:16]} Rh8 {[%emt 0:02:51]} 52. Rf3+ {[%emt 0:00:10]} Ke5 {[%emt 0:01:27]} 53. Kg4 {[%emt 0:00:28]} Rc8 {[%emt 0:00:53]} 54. Re3+ {[%emt 0:01:41]} Kf6 {[%emt 0:00:57]} 55. Rf3+ {[%emt 0:00:12]} Ke5 {[%emt 0:01:11]} 56. Re3+ {[%emt 0:00:05]} Kd6 {[%emt 0:00:22]} 57. Bh7 {[%emt 0:03:34]} Ng1 {[%emt 0:00:48]} 58. Re1 {[%emt 0:00:53]} Rh8 {[%emt 0:00:29]} 59. Be4 {[%emt 0:00:11]} Rg8+ {[%emt 0:00:18]} 60. Kh4 {[%emt 0:00:35]} Ke7 {[%emt 0:00:37]} 61. Re3 {[%emt 0:01:14]} Ra8 {[%emt 0:00:49]} 62. Bxa8 {[%emt 0:00:04]} Ke8 1-0